fUST/lending_fUST_20240304
["ID","MTS","AMOUNT","RATE_DAILY","PERIOD"]
[316525772,1709527832565,-500.0,0.00024657,2]
[316525773,1709527832575,-508.0916925,0.00024657,2]
[316525774,1709527832584,-240.76280496,0.00024657,2]
[316525775,1709527832593,-1106.31,0.00024657,2]
[316525776,1709527832602,-500.0,0.00024657,2]
[316525777,1709527832612,-508.48906955,0.00024657,2]
[316525778,1709527832622,-310.98003799,0.00024657,2]
[316525779,1709527832631,-505.44097916,0.00024657,2]
[316525780,1709527832640,-500.0,0.00024657,2]
[316525781,1709527832650,-500.0,0.00024657,2]
[316525782,1709527832658,-500.0,0.00024657,2]
[316525783,1709527832668,-500.0,0.00024657,2]
[316525784,1709527832677,-501.35206728,0.00024657,2]
[316525785,1709527832687,-500.0,0.00024657,2]
[316525786,1709527832696,-210.49,0.00024737,3]
[316525787,1709527832704,-500.0,0.00024745,2]
[316525788,1709527832714,-500.0,0.00024746,2]
[316525789,1709527832723,-203.01512997,0.00024746,2]
[316525790,1709527832732,-240.42881387,0.00024746,2]
[316525791,1709527832742,-503.94259034,0.00024746,2]
[316525792,1709527832751,-500.0,0.00024746,2]
[316525793,1709527832760,-500.0,0.00024746,2]
[316525794,1709527832770,-507.10057998,0.00024746,2]
[316525795,1709527832779,-500.0,0.00024746,2]
[316525796,1709527832788,-500.0,0.00024746,2]
[316525797,1709527832797,-500.0,0.00024746,2]
[316525798,1709527832806,-500.0,0.00024746,2]
[316525799,1709527832815,-500.0,0.00024746,2]
[316525800,1709527832824,-500.0,0.00024746,2]
[316525801,1709527832834,-500.0,0.00024746,2]
[316525802,1709527832843,-500.0,0.00024746,2]
[316525803,1709527832852,-500.0,0.00024746,2]
[316525804,1709527832862,-475.25963843,0.00024746,2]
[316525805,1709527832872,-1106.31,0.00024746,2]
[316525806,1709527832882,-501.51821949,0.00024746,2]
[316525807,1709527832891,-256.85019774,0.00024746,2]
[316525808,1709527832900,-194.91429754,0.00024746,2]
[316525809,1709527832910,-504.55945008,0.00024747,2]
[316525810,1709527832919,-500.0,0.00024747,2]
[316525811,1709527832928,-500.0,0.00024747,2]
[316525812,1709527832937,-502.21427229,0.00024747,2]
[316525813,1709527832947,-501.68113207,0.00024747,2]
[316525814,1709527832956,-500.0,0.00024747,2]
[316525815,1709527832965,-501.90283502,0.00024747,2]
[316525816,1709527832974,-501.56385219,0.00024747,2]
[316525817,1709527832985,-500.0,0.00024747,2]
[316525818,1709527832994,-504.38160006,0.00024747,2]
[316525819,1709527833003,-501.54926379,0.00024747,2]
[316525820,1709527833012,-502.22429951,0.00024747,2]
[316525821,1709527833022,-500.0,0.00024747,2]
[316525822,1709527833030,-500.0,0.00024747,2]
[316525823,1709527833040,-501.54141491,0.00024747,2]
[316525824,1709527833049,-501.16071252,0.00024747,2]
[316525825,1709527833058,-501.81534029,0.00024747,2]
[316525826,1709527833067,-295.30533083,0.00024747,2]
[316525827,1709527833076,-473.51969163,0.00024747,2]
[316525828,1709527833085,-500.0,0.00024747,2]
[316525829,1709527833095,-500.0,0.00024747,2]
[316525830,1709527833104,-501.25978343,0.00024747,2]
[316525831,1709527833113,-503.34936172,0.00024747,2]
[316525832,1709527833124,-500.0,0.00024747,2]
[316525833,1709527833133,-501.97832364,0.00024747,2]
[316525834,1709527833142,-500.0,0.00024747,2]
[316525835,1709527833151,-291.14903151,0.00024747,2]
[316525836,1709527833161,-482.7893228,0.00024747,2]
[316525837,1709527833170,-503.42024764,0.00024747,2]
[316525838,1709527833179,-503.90150784,0.00024747,2]
[316525839,1709527833189,-504.29720692,0.00024747,2]
[316525840,1709527833198,-550.34570088,0.00024747,2]
[316525841,1709527833208,-501.67936081,0.00024747,2]
[316525842,1709527833217,-500.48145555,0.00024747,2]
[316525843,1709527833226,-481.83002369,0.00024747,2]
[316525844,1709527833236,-554.69856849,0.00024747,2]
[316525845,1709527833245,-500.0,0.00024747,2]
[316525846,1709527833255,-500.0,0.00024747,2]
[316525847,1709527833264,-500.0,0.00024747,2]
[316525848,1709527833274,-500.0,0.00024747,2]
[316525849,1709527833285,-507.66250331,0.00024747,2]
[316525850,1709527833294,-500.0,0.00024747,2]
[316525851,1709527833304,-503.90839575,0.00024747,2]
[316525852,1709527833312,-503.05816808,0.00024747,2]
[316525853,1709527833322,-500.0,0.00024747,2]
[316525854,1709527833331,-500.0,0.00024747,2]
[316525855,1709527833340,-503.03607877,0.00024747,2]
[316525856,1709527833349,-502.3527152,0.00024747,2]
[316525857,1709527833358,-506.04292464,0.00024747,2]
[316525858,1709527833370,-503.17929292,0.00024747,2]
[316525859,1709527833380,-502.23648404,0.00024747,2]
[316525860,1709527833389,-506.62212972,0.00024747,2]
[316525861,1709527833398,-501.34269831,0.00024747,2]
[316525862,1709527833408,-508.30535678,0.00024747,2]
[316525863,1709527833417,-5469.0256505,0.00024747,2]
[316525864,1709527833426,-1427.54861866,0.00024756,2]
[316525865,1709527833435,-160.6885598,0.00024758,2]
[316525866,1709527833444,-327.98067574,0.00024809,2]
[316525867,1709527833453,-500.0,0.00024842,2]
[316525868,1709527833462,-500.0,0.00024842,2]
[316525869,1709527833471,-213.21214179,0.00024842,2]
[316525870,1709527833480,-533.95181598,0.00024842,2]
[316525871,1709527833489,-500.0,0.00024845,2]
[316525872,1709527833498,-438.93212905,0.00024845,2]
[316525873,1709527833507,-500.0,0.00024845,2]
[316525874,1709527833516,-500.0,0.00024845,2]
[316525875,1709527833525,-171.87963591,0.00024845,2]
[316525876,1709527833534,-500.0,0.00024845,2]
[316525877,1709527833543,-500.0,0.00024845,2]
[316525878,1709527833551,-500.0,0.00024845,2]
[316525879,1709527833560,-358.24,0.00024845,2]
[316525880,1709527833569,-1106.31,0.00024845,2]
[316525881,1709527833662,-858.45160482,0.00024846,2]
[316525882,1709527833676,-15070.67197424,0.00024846,2]
[316525883,1709527833685,-322.67112653,0.00024846,2]
[316525884,1709527833694,-155.19220384,0.00024846,2]
[316525885,1709527833702,-186.45155431,0.00024846,2]
[316525886,1709527833712,-500.0,0.00024846,2]
[316525887,1709527833721,-500.0,0.00024846,2]
[316525888,1709527833730,-500.0,0.00024846,2]
[316525889,1709527833739,-500.0,0.00024846,2]
[316525890,1709527833748,-500.0,0.00024846,2]
[316525891,1709527833757,-500.0,0.00024846,2]
[316525892,1709527833765,-500.0,0.00024846,2]
[316525893,1709527833774,-500.0,0.00024846,2]
[316525894,1709527833783,-340.91332865,0.00024846,2]
[316525895,1709527833792,-500.0,0.00024846,2]
[316525896,1709527833801,-500.0,0.00024846,2]
[316525897,1709527833810,-429.16,0.00024846,2]
[316525898,1709527833819,-1106.31,0.00024846,2]
[316525899,1709527833828,-20843.89309107,0.00024846,2]
[316525900,1709527833837,-294.45266475,0.00024846,2]
[316525901,1709527833847,-531.55498812,0.00024847,2]
[316525902,1709527833856,-500.0,0.00024847,2]
[316525903,1709527833866,-567.9814316,0.00024847,2]
[316525904,1709527833876,-502.83883107,0.00024847,2]
[316525905,1709527833885,-500.0,0.00024847,2]
[316525906,1709527833894,-502.8274011,0.00024847,2]
[316525907,1709527833903,-500.0,0.00024848,2]
[316525908,1709527833912,-500.0,0.00024854,2]
[316525909,1709527833921,-500.0,0.00024854,2]
[316525910,1709527833930,-500.0,0.00024854,2]
[316525911,1709527833939,-500.0,0.00024854,2]
[316525912,1709527833948,-500.0,0.00024854,2]
[316525913,1709527833957,-500.0,0.00024854,2]
[316525914,1709527833966,-500.0,0.00024854,2]
[316525915,1709527833975,-500.0,0.00024854,2]
[316525916,1709527833984,-500.0,0.00024854,2]
[316525917,1709527833993,-500.0,0.00024854,2]
[316525918,1709527834002,-500.0,0.00024854,2]
[316525919,1709527834011,-588.31173474,0.00024854,2]
[316525920,1709527834020,-500.0,0.00024854,2]
[316525921,1709527834029,-500.0,0.00024854,2]
[316525922,1709527834039,-500.0,0.00024854,2]
[316525923,1709527834048,-500.0,0.00024854,2]
[316525924,1709527834058,-500.0,0.00024854,2]
[316525925,1709527834067,-500.0,0.00024854,2]
[316525926,1709527834077,-500.0,0.00024854,2]
[316525927,1709527834086,-500.0,0.00024854,2]
[316525928,1709527834095,-500.0,0.00024854,2]
[316525929,1709527834104,-342.11,0.00024854,2]
[316525930,1709527834114,-1106.31,0.00024854,2]
[316525931,1709527834124,-1106.31,0.00024854,2]
[316525932,1709527834133,-1106.31,0.00024854,2]
[316525933,1709527834142,-1106.31,0.00024854,2]
[316525934,1709527834151,-1106.31,0.00024854,2]
[316525935,1709527834160,-1106.31,0.00024854,2]
[316525936,1709527834170,-1106.31,0.00024854,2]
[316525937,1709527834180,-1106.31,0.00024854,2]
[316525938,1709527834188,-1106.31,0.00024854,2]
[316525939,1709527834198,-1106.31,0.00024854,2]
[316525940,1709527834206,-1106.31,0.00024854,2]
[316525941,1709527834217,-1106.31,0.00024854,2]
[316525942,1709527834226,-1106.31,0.00024854,2]
[316525943,1709527834235,-1106.31,0.00024854,2]
[316525944,1709527834244,-1106.31,0.00024854,2]
[316525945,1709527834253,-1106.31,0.00024854,2]
[316525946,1709527834262,-1106.31,0.00024854,2]
[316525947,1709527834271,-1106.31,0.00024854,2]
[316525948,1709527834282,-1106.31,0.00024854,2]
[316525949,1709527834291,-1106.48284274,0.00024854,2]
[316525950,1709527834300,-238.88503054,0.00024854,2]
[316525951,1709527834310,-154.9690062,0.00024854,2]
[316525952,1709527834319,-155.13490413,0.00024854,2]
[316525953,1709527834328,-312.60385265,0.00024854,2]
[316525954,1709527834337,-151.245199,0.00024855,2]
[316525955,1709527834346,-151.0,0.00024855,2]
[316525956,1709527834355,-151.0,0.00024855,2]
[316525957,1709527834364,-151.0,0.00024855,2]
[316525958,1709527834374,-151.0,0.00024855,2]
[316525959,1709527834384,-177.5335,0.00024855,2]
[316525960,1709527834394,-151.489946,0.00024855,2]
[316525961,1709527834404,-500.0,0.00024855,2]
[316525962,1709527834412,-500.0,0.00024855,2]
[316525963,1709527834422,-500.0,0.00024855,2]
[316525964,1709527834431,-539.45636094,0.00024855,2]
[316525965,1709527834440,-500.0,0.00024855,2]
[316525966,1709527834449,-173.15848892,0.00024855,2]
[316525967,1709527834458,-335.37216464,0.00024855,2]
[316525968,1709527834468,-500.0,0.00024855,2]
[316525969,1709527834477,-500.0,0.00024855,2]
[316525970,1709527834487,-500.0,0.00024855,2]
[316525971,1709527834496,-500.0,0.00024855,2]
[316525972,1709527834506,-500.0,0.00024855,2]
[316525973,1709527834514,-500.0,0.00024855,2]
[316525974,1709527834524,-500.0,0.00024855,2]
[316525975,1709527834533,-500.0,0.00024855,2]
[316525976,1709527834542,-500.0,0.00024855,2]
[316525977,1709527834551,-500.0,0.00024855,2]
[316525978,1709527834560,-500.0,0.00024855,2]
[316525979,1709527834569,-275.8563233,0.00024855,2]
[316525980,1709527834578,-184.07188802,0.00024855,2]
[316525981,1709527834588,-500.0,0.00024855,2]
[316525982,1709527834597,-484.76051525,0.00024855,2]
[316525983,1709527834606,-65063.38957178,0.00024858,30]
[316526544,1709527842847,-55558.69868578,0.00024858,30]
[316531179,1709528030744,152.51889841,2.5e-05,2]
[316531183,1709528049748,6130.8946228,0.000125,2]
[316531185,1709528063947,270.76610857,0.0001,2]
[316531186,1709528144910,501.90811861,0.0002,2]
[316531187,1709528162821,501.90811861,0.0002,2]
[316531191,1709528186824,501.90811861,0.0002,2]
[316531193,1709528202823,501.90811861,0.0002,2]
[316531194,1709528220824,501.90811861,0.0002,2]
[316531199,1709528242838,501.90811861,0.0002,2]
[316531206,1709528258837,501.90811861,0.0002,2]
[316531207,1709528276845,501.90811861,0.0002,2]
[316531208,1709528294849,612.46805292,0.0002,2]
[316531278,1709528829147,-274.17258195,0.00020765,2]
[316531279,1709528829167,-154.95351395,0.00020766,2]
[316531280,1709528829186,-101.63490732,0.00020766,2]
[316531281,1709528845080,-476.60104154,0.00020766,2]
[316531289,1709528876271,447.54947507,0.000189,2]
[316531308,1709528948067,-894.62191381,0.00020766,2]
[316531309,1709528948091,-168.1141458,0.00020768,2]
[316531310,1709528948112,-946.9695734,0.00020803,2]
[316531311,1709528948134,-267.228966,0.00021314,2]
[316531312,1709528948155,-142.01458899,0.00022129,2]
[316531320,1709528960206,-300.0,0.00022128,2]
[316531321,1709528960228,-24095.32877121,0.00022129,2]
[316531322,1709528960254,-3919.73170237,0.0002213,3]
[316531363,1709529032052,-19772.86897093,0.00021405,2]
[316531364,1709529032092,-1524.29908413,0.00021405,2]
[316531406,1709529038029,-1843.52737132,0.00021405,2]
[316531407,1709529038041,-1759.30457362,0.00021405,2]
[316531408,1709529038051,-274.17258195,0.00022129,2]
[316531409,1709529038060,-80.26829763,0.0002213,3]
[316531410,1709529038069,-155.18490251,0.0002213,2]
[316531411,1709529038079,-677.82964429,0.0002387,2]
[316531421,1709529041100,-503.01188397,0.0002387,2]
[316531422,1709529041236,-6314.93890248,0.0002387,2]
[316531423,1709529041245,-447.54947507,0.000239,2]
[316531424,1709529041255,-34672.727483,0.00023998,2]
[316531425,1709529041264,-1273.08,0.00024,4]
[316531426,1709529041273,-500.0,0.00024657,2]
[316531427,1709529041282,-362.32443225,0.00024657,2]
[316531428,1709529041291,-500.0,0.00024657,2]
[316531429,1709529041300,-500.0,0.00024657,2]
[316531430,1709529041309,-500.0,0.00024657,2]
[316531431,1709529041318,-500.0,0.00024657,2]
[316531432,1709529041328,-508.89597719,0.00024657,2]
[316531433,1709529041337,-500.0,0.00024657,2]
[316531434,1709529041346,-500.59450636,0.00024657,2]
[316531435,1709529041355,-500.0,0.00024657,2]
[316531436,1709529041364,-500.0,0.00024657,2]
[316531437,1709529041374,-576.29,0.00024657,2]
[316531438,1709529041383,-500.0,0.00024657,2]
[316531439,1709529041393,-504.5874269,0.00024657,2]
[316531440,1709529041403,-500.0,0.00024657,2]
[316531441,1709529041412,-181.72,0.00024657,2]
[316531442,1709529041424,-500.0,0.00024657,2]
[316531443,1709529041433,-351.07594042,0.00024657,2]
[316531444,1709529041443,-509.15615873,0.00024657,2]
[316531445,1709529041453,-500.0,0.00024657,2]
[316531446,1709529041462,-500.0,0.00024657,2]
[316531447,1709529041471,-295.03,0.00024657,2]
[316531448,1709529041481,-500.0,0.00024657,2]
[316531449,1709529041490,-500.0,0.00024657,2]
[316531450,1709529041500,-500.0,0.00024657,2]
[316531451,1709529041509,-502.0009226,0.00024657,2]
[316531452,1709529041519,-500.0,0.00024657,2]
[316531453,1709529041529,-500.0,0.00024657,2]
[316531454,1709529041539,-500.0,0.00024657,2]
[316531455,1709529041548,-500.0,0.00024657,2]
[316531456,1709529041557,-500.0,0.00024657,2]
[316531457,1709529041567,-561.3,0.00024657,2]
[316531458,1709529041576,-500.0,0.00024657,2]
[316531459,1709529041586,-512.90408364,0.00024657,2]
[316531460,1709529041595,-500.0,0.00024657,2]
[316531461,1709529041604,-500.0,0.00024657,2]
[316531462,1709529041613,-500.0,0.00024657,2]
[316531463,1709529041623,-712.10846946,0.00024856,2]
[316531464,1709529041635,-557.72315857,0.00024856,2]
[316531465,1709529041644,-1020.72251964,0.00024856,2]
[316531466,1709529041653,-1886.40812081,0.00024856,2]
[316531467,1709529041662,-529.55624868,0.00024856,2]
[316531468,1709529041673,-228.23557901,0.00024857,2]
[316531469,1709529041682,-1438.88201536,0.00024857,2]
[316531470,1709529041691,-518.10672454,0.00024857,2]
[316531471,1709529041700,-500.0,0.00024857,2]
[316531472,1709529041710,-500.0,0.00024857,2]
[316531473,1709529041720,-503.20032969,0.00024857,2]
[316531474,1709529041730,-500.0,0.00024857,2]
[316531475,1709529041739,-500.0,0.00024857,2]
[316531476,1709529041748,-407.13552458,0.00024857,2]
[316531477,1709529041758,-500.0,0.00024858,2]
[316531478,1709529041766,-500.0,0.00024858,2]
[316531479,1709529041776,-319.86138362,0.00024858,2]
[316531480,1709529041784,-195.383375,0.00024859,2]
[316531481,1709529041793,-184.336773,0.00024859,2]
[316531482,1709529041802,-500.0,0.0002486,2]
[316531483,1709529041811,-500.0,0.0002486,2]
[316531484,1709529041820,-471.21094225,0.0002486,2]
[316531485,1709529041829,-500.0,0.0002486,2]
[316531486,1709529041839,-627.61945266,0.0002486,2]
[316531487,1709529041848,-500.0,0.0002486,2]
[316531488,1709529041862,-500.0,0.0002486,2]
[316531489,1709529041871,-500.0,0.0002486,2]
[316531490,1709529041880,-500.0,0.0002486,2]
[316531491,1709529041889,-500.0,0.0002486,2]
[316531492,1709529041898,-500.0,0.0002486,2]
[316531493,1709529041907,-500.0,0.0002486,2]
[316531494,1709529041916,-500.0,0.0002486,2]
[316531495,1709529041926,-151.0,0.00024861,2]
[316531496,1709529041935,-4794.48707798,0.00024861,30]
[316531497,1709529041957,-2241.36847673,0.00024861,30]
[316531498,1709529041968,-3112.82508354,0.00024861,30]
[316531538,1709529043030,-456.56140011,0.00024861,30]
[316531539,1709529043043,-1053.98072436,0.00024861,30]
[316531540,1709529043055,-6959.99999995,0.00024861,30]
[316531541,1709529043067,-416.75595341,0.00024861,30]
[316531542,1709529043078,-1670.300112,0.00024861,30]
[316531560,1709529046019,-15379.59105452,0.00024861,30]
[316531718,1709530030155,-274.17258195,0.00022129,2]
[316531719,1709530030175,-191.79338628,0.0002213,2]
[316531720,1709530030195,-155.07133281,0.0002213,2]
[316531721,1709530030215,-301.7631603,0.00022761,2]
[316531722,1709530030234,-249.75328,0.00023069,2]
[316531723,1709530030254,-177.240497,0.00023454,2]
[316531724,1709530030274,-200.35742495,0.00023538,2]
[316531725,1709530030294,-403.68208671,0.00023548,2]
[316531736,1709530050106,-151.489946,0.00023548,2]
[316531738,1709530164117,-162.30784711,0.00021448,2]
[316531746,1709530232235,-135.68002789,0.00021448,2]
[316531747,1709530232244,-154.75727651,0.00023705,2]
[316531795,1709530238143,-2724.0367558,0.00023705,2]
[316531884,1709530243157,-5092.79164901,0.00023705,2]
[316531887,1709530243169,-6350.0,0.00023705,2]
[316531948,1709530876369,250.0,0.0002,10]
[316531966,1709531155159,-154.92253873,0.00021604,2]
[316531967,1709531155179,-328.91416666,0.00021605,2]
[316531968,1709531155198,-984.48872993,0.00022662,2]
[316531969,1709531155218,-16812.3251749,0.0002317,2]
[316531970,1709531155237,-565.0,0.000234,2]
[316531971,1709531155259,-249.75328,0.00023472,2]
[316531972,1709531155281,-753.884315,0.0002366,2]
[316531973,1709531155301,-155.20020827,0.00023705,2]
[316531974,1709531155321,-300.0,0.00024,11]
[316531975,1709531155340,-160.4829556,0.0002406,2]
[316531976,1709531155360,-2000.0,0.000246,2]
[316531977,1709531155380,-2000.0,0.0002461,2]
[316531978,1709531155401,-2000.0,0.0002462,2]
[316531979,1709531155420,-2000.0,0.0002463,2]
[316531980,1709531155439,-2000.0,0.0002464,2]
[316531981,1709531155459,-2000.0,0.0002465,2]
[316531982,1709531155479,-280.0,0.00024658,2]
[316531983,1709531155498,-500.93064149,0.00024659,2]
[316531984,1709531155517,-500.0,0.00024659,2]
[316531985,1709531155538,-500.0,0.00024659,2]
[316531986,1709531155556,-502.56799972,0.00024659,2]
[316531987,1709531155577,-2000.0,0.0002466,2]
[316531988,1709531155598,-500.0,0.00024668,2]
[316531989,1709531155618,-500.0,0.00024668,2]
[316531990,1709531155639,-388.8101085,0.00024668,2]
[316531991,1709531155661,-500.0,0.00024668,2]
[316531992,1709531155681,-503.04528464,0.00024668,2]
[316531993,1709531155702,-500.0,0.00024668,2]
[316531994,1709531155722,-358.13037358,0.00024668,2]
[316531995,1709531155741,-283.54663088,0.00024668,2]
[316531996,1709531155761,-632.52,0.00024668,2]
[316531997,1709531155785,-500.0,0.00024668,2]
[316531998,1709531155806,-506.14346462,0.00024668,2]
[316531999,1709531155826,-500.0,0.00024669,2]
[316532000,1709531155846,-500.0,0.00024669,2]
[316532001,1709531155867,-500.0,0.00024669,2]
[316532002,1709531155886,-500.0,0.00024669,2]
[316532003,1709531155907,-500.0,0.00024669,2]
[316532004,1709531155927,-172.15821987,0.00024669,2]
[316532005,1709531155946,-500.0,0.00024669,2]
[316532006,1709531155966,-500.0,0.00024669,2]
[316532007,1709531155987,-500.0,0.00024669,2]
[316532008,1709531156009,-2000.0,0.0002467,2]
[316532009,1709531156035,-2000.0,0.0002468,2]
[316532010,1709531156057,-2000.0,0.0002469,2]
[316532011,1709531156079,-2000.0,0.000247,2]
[316532012,1709531156102,-500.0,0.00024709,2]
[316532013,1709531156124,-500.0,0.00024709,2]
[316532014,1709531156145,-2000.0,0.0002471,2]
[316532015,1709531156166,-3850.0,0.0002472,2]
[316532016,1709531156186,-500.0,0.00024858,2]
[316532017,1709531156206,-239.45276227,0.00024859,2]
[316532018,1709531156225,-321.4643478,0.00024859,2]
[316532019,1709531156245,-155.06202481,0.00024859,2]
[316532020,1709531156267,-155.06047358,0.00024859,2]
[316532021,1709531156288,-505.41085245,0.00024862,2]
[316532022,1709531156311,-406.20449462,0.00024862,2]
[316532023,1709531156333,-500.0,0.00024862,2]
[316532024,1709531156357,-500.0,0.00024862,2]
[316532025,1709531156377,-1472.85786267,0.00024863,2]
[316532026,1709531156398,-535.73678149,0.00024863,2]
[316532027,1709531156417,-273.7014292,0.00024863,2]
[316532028,1709531156436,-155.1339123,0.00024863,2]
[316532029,1709531156456,-15985.63054266,0.00024863,2]
[316532030,1709531156476,-3141.19599029,0.00024863,2]
[316532031,1709531156497,-162.51170488,0.00024863,2]
[316532032,1709531156518,-500.0,0.00024863,2]
[316532033,1709531156542,-500.0,0.00024863,2]
[316532034,1709531156562,-297.85762821,0.00024864,2]
[316532035,1709531156582,-500.24950105,0.00024864,2]
[316532036,1709531156602,-500.0,0.00024864,2]
[316532037,1709531156622,-315.96,0.00024864,2]
[316532038,1709531156655,-500.0,0.00024864,2]
[316532039,1709531156678,-500.0,0.00024864,2]
[316532040,1709531156700,-500.0,0.00024864,2]
[316532041,1709531156719,-500.0,0.00024864,2]
[316532042,1709531156740,-500.0,0.00024864,2]
[316532043,1709531156760,-500.0,0.00024864,2]
[316532044,1709531156782,-500.0,0.00024864,2]
[316532045,1709531156803,-500.0,0.00024864,2]
[316532046,1709531156823,-500.0,0.00024864,2]
[316532047,1709531156844,-500.0,0.00024864,2]
[316532048,1709531156865,-386.65,0.00024864,2]
[316532049,1709531156888,-500.0,0.00024864,2]
[316532050,1709531156910,-445.74,0.00024864,2]
[316532051,1709531156933,-500.0,0.00024864,2]
[316532052,1709531156956,-500.0,0.00024864,2]
[316532053,1709531156979,-500.0,0.00024864,2]
[316532054,1709531157002,-500.0,0.00024864,2]
[316532055,1709531157025,-425.01,0.00024864,2]
[316532056,1709531157045,-9136.33271933,0.00024865,2]
[316532064,1709531250283,-150.0,0.000246,2]
[316532065,1709531250308,-240.76675,0.00024865,2]
[316532138,1709531432484,-219.27611111,0.00022764,2]
[316532141,1709531432493,-17199.55716383,0.00024865,2]
[316532632,1709531445099,-809.96960681,0.00024865,2]
[316532664,1709531445534,-2309.24945428,0.00024865,2]
[316532666,1709531445546,-38634.00306212,0.00024865,2]
[316532668,1709531445555,-228.10586535,0.00024866,2]
[316532670,1709531445564,-329.84765957,0.00024867,2]
[316532672,1709531445573,-500.0,0.00024867,2]
[316532674,1709531445582,-500.0,0.00024867,2]
[316532676,1709531445591,-500.0,0.00024867,2]
[316532678,1709531445600,-489.33361686,0.00024867,2]
[316532680,1709531445610,-500.0,0.00024867,2]
[316532682,1709531445619,-500.0,0.00024867,2]
[316532684,1709531445628,-500.0,0.00024867,2]
[316532686,1709531445638,-500.0,0.00024867,2]
[316532688,1709531445647,-389.33236068,0.00024867,2]
[316532690,1709531445656,-500.0,0.00024867,2]
[316532692,1709531445666,-151.0,0.00024867,2]
[316532695,1709531445675,-151.0,0.00024867,2]
[316532698,1709531445684,-151.0,0.00024867,2]
[316532700,1709531445693,-151.0,0.00024867,2]
[316532702,1709531445702,-151.0,0.00024867,2]
[316532704,1709531445711,-235.711594,0.00024867,2]
[316532706,1709531445720,-1057.83040318,0.00024867,3]
[316532708,1709531445729,-151.0,0.00024868,2]
[316532710,1709531445738,-151.0,0.00024868,2]
[316532711,1709531445747,-151.0,0.00024868,2]
[316532713,1709531445756,-151.0,0.00024868,2]
[316532715,1709531445765,-151.0,0.00024868,2]
[316532718,1709531445774,-223.994786,0.00024868,2]
[316532720,1709531445784,-205123.82849093,0.00024868,30]
[316532797,1709531446509,-84119.03020573,0.00024868,30]
[316536018,1709531608279,13580.44300507,0.0002,2]
[316536020,1709531636076,21320.22074553,0.00019,2]
[316536041,1709532441181,-154.93802479,0.00022663,2]
[316536042,1709532441202,-419.99847721,0.00022664,2]
[316536046,1709532493270,297.54451621,0.000189,2]
[316536047,1709532549172,-274.17258195,0.00022663,2]
[316536048,1709532549192,-17043.64416299,0.00022664,2]
[316536049,1709532549212,-12682.18325506,0.00023,2]
[316536145,1709532632635,-3553.71945025,0.00023,2]
[316536147,1709532632644,-300.0,0.00023436,2]
[316536149,1709532632655,-24900.0,0.00023437,2]
[316536151,1709532632664,-214.1072324,0.00023454,2]
[316536153,1709532632674,-683.9856604,0.00023646,2]
[316536155,1709532632686,-297.54451621,0.000239,2]
[316536167,1709532632795,-300.0,0.00024,11]
[316536169,1709532632806,-170.36932604,0.00024619,2]
[316536171,1709532632815,-500.0,0.00024657,2]
[316536173,1709532632825,-500.0,0.00024657,2]
[316536175,1709532632834,-500.0,0.00024657,2]
[316536177,1709532632843,-500.0,0.00024668,2]
[316536179,1709532632854,-505.54126664,0.00024668,2]
[316536181,1709532632863,-651.99319654,0.00024771,2]
[316536183,1709532632872,-1859.98294994,0.00024841,2]
[316536185,1709532632881,-500.0,0.00024861,2]
[316536187,1709532632890,-500.0,0.00024862,2]
[316536189,1709532632899,-500.0,0.00024864,2]
[316536191,1709532632908,-556.15782412,0.00024864,2]
[316536193,1709532632917,-321.4643478,0.00024865,2]
[316536195,1709532632926,-157.158337,0.00024869,2]